bitfinex-derivatives/quotes_ETHF0:USTF0_20250616
["timestamp","ask_amount","ask_price","bid_price","bid_amount"]
[1750079673713,23.505,2613.9,2613.8,1.38290372]
[1750079674011,24.27003,2613.9,2613.8,1.38290372]
[1750079675219,23.505,2613.9,2613.8,1.38290372]
[1750079675418,0.6658,2614.0,2613.9,0.76503]
[1750079675623,24.1758,2614.0,2613.9,0.76503]
[1750079675810,24.1758,2614.0,2613.9,2.07443]
[1750079676515,0.00574372,2614.1,2614.0,0.765]
[1750079676815,29.64174372,2614.1,2614.0,0.765]
[1750079677209,29.64174372,2614.1,2614.0,1.3825]
[1750079677618,30.40672372,2614.1,2614.0,1.3825]
[1750079677825,29.64174372,2614.1,2614.0,1.3825]
[1750079678715,30.40672372,2614.1,2614.0,1.3825]
[1750079679320,29.64174372,2614.1,2614.0,1.3825]
[1750079679823,30.40672372,2614.1,2614.0,1.3825]
[1750079680219,29.64174372,2614.1,2614.0,1.3825]
[1750079682120,30.40672372,2614.1,2614.0,1.3825]
[1750079682624,29.64174372,2614.1,2614.0,1.3825]
[1750079684111,29.64174372,2614.1,2614.0,2.6876]
[1750079684722,29.64174372,2614.1,2614.0,9.0876]
[1750079684921,30.40672372,2614.1,2614.0,9.0876]
[1750079685222,29.64174372,2614.1,2614.0,9.0876]
[1750079685614,29.64174372,2614.1,2614.0,2.6876]
[1750079686022,30.40672372,2614.1,2614.0,2.6876]
[1750079686216,29.64174372,2614.1,2614.0,9.0876]
[1750079686617,30.40672372,2614.1,2614.0,9.0876]
[1750079686920,29.64174372,2614.1,2614.0,9.0876]
[1750079687619,23.51574372,2614.1,2614.0,9.0876]
[1750079687826,0.00574372,2614.1,2614.0,9.0876]
[1750079688025,23.51574372,2614.1,2614.0,9.0876]
[1750079688225,0.00574372,2614.1,2614.0,9.0876]
[1750079688427,23.51474372,2614.1,2614.0,9.0876]
[1750079689423,0.00574372,2614.1,2614.0,9.0876]
[1750079689614,6.37546587,2614.9,2614.0,9.0876]
[1750079689615,0.76483,2614.7,2614.6,0.7648]
[1750079689813,30.39883,2614.7,2614.6,0.7648]
[1750079690023,0.76481,2614.8,2614.7,0.76478]
[1750079690222,1.91201,2614.7,2614.3,0.7649]
[1750079690421,0.76489,2614.4,2614.3,0.7649]
[1750079690726,24.27389,2614.4,2614.3,0.7649]
[1750079690926,24.92769,2614.4,2614.3,0.7649]
[1750079692331,30.2878,2614.4,2614.3,0.7649]
[1750079692526,31.05269,2614.4,2614.3,0.7649]
[1750079693029,31.05269,2614.4,2614.3,3.9727]
[1750079693930,31.05269,2614.4,2614.3,0.7649]
[1750079698224,0.76495,2614.2,2614.1,2.29275083]
[1750079698418,0.76495,2614.2,2614.1,0.76495]
[1750079698419,24.27195,2614.2,2614.1,0.76495]
[1750079699232,23.507,2614.2,2614.1,0.76495]
[1750079699725,24.27195,2614.2,2614.1,0.76495]
[1750079699923,23.507,2614.2,2614.1,0.76495]
[1750079700627,24.27195,2614.2,2614.1,0.76495]
[1750079702430,0.76493,2614.3,2614.2,0.76495]
[1750079702631,30.39593,2614.3,2614.2,0.76495]
[1750079705633,29.631,2614.3,2614.2,0.76495]
[1750079705827,1.4187,2614.4,2614.3,0.76492]
[1750079706028,31.0487,2614.4,2614.3,0.76492]
[1750079706836,1.91783372,2614.6,2614.5,0.76486]
[1750079706837,0.00574372,2614.6,2614.5,0.76486]
[1750079707138,29.63574372,2614.6,2614.5,4.84836144]
[1750079707334,29.63574372,2614.6,2614.5,2.29266083]
[1750079707527,29.63574372,2614.6,2614.5,3.61016083]
[1750079707729,30.40057372,2614.6,2614.5,2.29266083]
[1750079707935,31.07847372,2614.6,2614.5,0.76486]
[1750079708428,7.57347372,2614.6,2614.5,0.76486]
[1750079708628,31.07747372,2614.6,2614.5,0.76486]
[1750079709840,29.63474372,2614.6,2614.5,0.76486]
[1750079710136,29.63474372,2614.6,2614.5,2.07346]
[1750079710334,0.00574372,2614.6,2614.5,6.15696144]
[1750079710532,23.50874372,2614.6,2614.5,7.68476227]
[1750079710938,0.6391,2614.9,2614.8,0.76477]
[1750079711133,23.503,2614.9,2614.8,3.97257]
[1750079711337,0.76477,2614.8,2614.7,1.52780083]
[1750079711534,0.7648,2614.7,2614.6,0.7648]
[1750079711736,24.2678,2614.7,2614.6,0.7648]
[1750079711934,23.503,2614.7,2614.6,0.7648]
[1750079712840,24.2678,2614.7,2614.6,0.7648]
[1750079713235,23.503,2614.7,2614.6,0.7648]
[1750079714541,24.2678,2614.7,2614.6,0.7648]
[1750079715239,23.503,2614.7,2614.6,0.7648]
[1750079715741,24.2678,2614.7,2614.6,0.7648]
[1750079716042,24.2658,2614.7,2614.6,0.7648]
[1750079716837,23.501,2614.7,2614.6,0.7648]
[1750079717944,6.7735,2614.8,2614.7,0.7648]
[1750079718243,31.03827,2614.8,2614.7,0.7648]
[1750079718934,30.2735,2614.8,2614.7,0.7648]
[1750079719131,31.03827,2614.8,2614.7,0.7648]
[1750079719340,30.2705,2614.8,2614.7,0.7648]
[1750079719841,0.6495,2614.8,2614.7,0.7648]
[1750079720042,0.77048372,2614.9,2614.8,0.76477]
[1750079720238,30.39048372,2614.9,2614.8,0.76477]
[1750079720635,0.77048372,2614.9,2614.8,0.76477]
[1750079720940,30.39048372,2614.9,2614.8,0.76477]
[1750079721138,0.7648,2614.7,2614.6,2.29261083]
[1750079721343,0.7648,2614.7,2614.6,0.76481]
[1750079722439,35.62114516,2614.9,2614.5,3.2078]
[1750079722440,0.76486,2614.6,2614.5,0.76484]
[1750079722638,24.93946,2614.6,2614.5,0.76484]
[1750079725448,24.93846,2614.6,2614.5,3.97264]
[1750079725941,31.05946,2614.6,2614.5,3.97264]
[1750079726547,31.05946,2614.6,2614.5,0.76484]
[1750079729050,32.2067,2614.6,2614.2,3.2078]
[1750079729340,0.76492,2614.3,2614.2,3.97275]
[1750079729539,24.26192,2614.3,2614.2,3.97275]
[1750079730444,4.75910144,2614.6,2614.2,3.2078]
[1750079730642,24.26188,2614.5,2614.4,0.76486]
[1750079730843,0.6756,2614.6,2614.5,0.76486]
[1750079731143,5.99534144,2615.0,2614.6,0.76483]
[1750079731144,23.497,2614.7,2614.6,0.76483]
[1750079731445,23.497,2614.7,2614.6,7.04996051]
[1750079731640,0.00574372,2614.9,2614.8,0.76477]
[1750079731843,24.26748372,2614.9,2614.8,0.76477]
[1750079733746,30.38748372,2614.9,2614.8,0.76477]
[1750079734343,6.89148372,2614.9,2614.8,0.76477]
[1750079734548,30.38748372,2614.9,2614.8,0.76477]
[1750079734738,0.00574372,2614.9,2614.8,8.05607144]
[1750079734939,0.76466,2615.2,2615.1,0.76468]
[1750079734940,6.121,2615.2,2615.1,0.76468]
[1750079735144,23.138,2615.4,2615.3,0.76462]
[1750079735145,0.6776,2615.4,2615.3,0.76462]
[1750079735347,24.1736,2615.4,2615.3,0.76462]
[1750079735845,24.1736,2615.4,2615.3,2.03612]
[1750079736045,0.00574372,2615.6,2615.5,0.76457]
[1750079736344,29.62174372,2615.6,2615.5,3.97237]
[1750079736544,29.62174372,2615.6,2615.5,5.33037]
[1750079737047,30.38628372,2615.6,2615.5,3.97237]
[1750079737244,29.62174372,2615.6,2615.5,3.97237]
[1750079737647,0.7646,2615.4,2615.3,1.5322777]
[1750079737842,4.84810144,2615.4,2615.3,0.00574372]
[1750079738550,4.84810144,2615.4,2615.3,0.77036372]
[1750079739642,0.76458,2615.5,2615.4,0.76457]
[1750079739945,6.12574372,2615.6,2615.5,0.76457]
[1750079740151,0.00574372,2615.6,2615.5,3.97237]
[1750079740648,24.26228372,2615.6,2615.5,3.97237]
[1750079741553,27.58124516,2615.6,2615.3,7.17035372]
[1750079741746,4.84810144,2615.4,2615.3,7.17035372]
[1750079742151,4.84810144,2615.4,2615.3,0.77035372]
[1750079742657,0.76458,2615.5,2615.4,0.7646]
[1750079742956,24.26231372,2615.6,2615.5,0.76457]
[1750079743448,0.76459,2615.5,2615.4,0.76457]
[1750079743653,6.12574372,2615.6,2615.5,0.76457]
[1750079743856,29.61574372,2615.6,2615.5,0.76457]
[1750079745450,0.00574372,2615.6,2615.5,0.76457]
[1750079745657,23.49474372,2615.6,2615.5,0.76457]
[1750079746052,24.25928372,2615.6,2615.5,0.76457]
[1750079746255,23.49474372,2615.6,2615.5,0.76457]
[1750079747055,24.25928372,2615.6,2615.5,0.76457]
[1750079747358,0.76459,2615.5,2615.4,0.76458]
[1750079747754,0.7646,2615.4,2615.3,0.00574372]
[1750079747960,1.4382,2615.4,2615.3,0.00574372]
[1750079748150,2.0519,2615.4,2615.3,0.00574372]
[1750079748352,2.0519,2615.4,2615.3,0.77036372]
[1750079748658,2.0519,2615.4,2615.3,0.00574372]
[1750079749954,3.2938,2615.4,2615.3,0.00574372]
[1750079750154,2.0519,2615.4,2615.3,0.00574372]
[1750079751659,2.0519,2615.4,2615.3,0.77036372]
[1750079751855,2.0519,2615.4,2615.3,0.00574372]
[1750079752161,2.0519,2615.4,2615.3,0.77036372]
[1750079752361,2.0519,2615.4,2615.3,0.00574372]
[1750079752861,2.0519,2615.4,2615.3,0.77036372]
[1750079753159,2.0519,2615.4,2615.3,0.00574372]
[1750079753461,2.0519,2615.4,2615.3,0.77036372]
[1750079754758,31.0402,2615.4,2615.3,0.77036372]
[1750079755059,31.0402,2615.4,2615.3,0.00574372]
[1750079755762,1.4382,2615.4,2615.3,0.00574372]
[1750079755964,31.0402,2615.4,2615.3,0.77036372]
[1750079757362,31.0402,2615.4,2615.3,0.00574372]
[1750079757558,24.9242,2615.4,2615.3,0.77036372]
[1750079757763,6.8806,2615.4,2615.3,0.77036372]
[1750079757964,29.602,2615.4,2615.3,0.77036372]
[1750079758165,6.116,2615.4,2615.3,0.77036372]
[1750079758461,29.602,2615.4,2615.3,0.77036372]
[1750079758764,30.3666,2615.4,2615.3,0.77036372]
[1750079759159,23.486,2615.4,2615.3,0.77036372]
[1750079759759,24.2506,2615.4,2615.3,0.77036372]
[1750079761666,24.2506,2615.4,2615.3,0.00574372]
[1750079764174,24.2506,2615.4,2615.3,0.77036372]
[1750079764671,24.2506,2615.4,2615.3,0.00574372]
[1750079765261,24.2506,2615.4,2615.3,0.77036372]
[1750079765766,0.00574372,2615.6,2615.5,0.76457]
[1750079765973,24.25428372,2615.6,2615.5,4.84807144]
[1750079766169,24.25428372,2615.6,2615.4,2.16843398]
[1750079766374,0.76457,2615.5,2615.4,1.52653398]
[1750079766575,1.38637,2615.5,2615.4,0.76457]
[1750079766769,0.7646,2615.4,2615.3,1.5322777]
[1750079767071,10.96410144,2615.4,2615.3,0.00574372]
[1750079768369,11.58030144,2615.4,2615.3,0.00574372]
[1750079768577,12.86450144,2615.4,2615.3,0.00574372]
[1750079769775,16.07230144,2615.4,2615.3,0.00574372]
[1750079770479,0.76468,2615.1,2615.0,3.2078]
[1750079770773,28.33218144,2615.1,2615.0,3.2078]
[1750079770963,0.76474,2614.9,2614.8,1.52653398]
[1750079771166,4.84824144,2614.9,2614.8,1.52653398]
[1750079771374,0.76477,2614.8,2614.7,2.92831398]
[1750079771578,24.24877,2614.8,2614.7,2.92831398]
[1750079772378,24.24877,2614.8,2614.7,1.40178]
[1750079773477,24.24877,2614.8,2614.6,4.7400777]
[1750079773478,0.7648,2614.7,2614.6,3.97837372]
[1750079774576,23.484,2614.8,2614.7,0.7648]
[1750079775375,23.484,2614.8,2614.7,2.0679]
[1750079775578,6.758,2615.0,2614.9,0.76474]
[1750079775777,29.601,2615.0,2614.9,3.97254]
[1750079776373,0.7647,2615.1,2615.0,0.76471]
[1750079776574,29.601,2615.1,2614.8,0.6189]
[1750079776876,29.601,2615.1,2614.7,1.97936406]
[1750079776877,0.76474,2615.0,2614.9,0.76472]
[1750079777579,29.601,2615.0,2614.9,2.05082]
[1750079779374,30.36571,2615.0,2614.9,2.05082]
[1750079779979,30.36571,2615.0,2614.9,0.76472]
[1750079781476,29.601,2615.0,2614.9,0.76472]
[1750079781679,30.36571,2615.0,2614.9,2.03302]
[1750079782180,4.08350144,2615.1,2615.0,0.76471]
[1750079782181,6.8787,2615.1,2615.0,0.76471]
[1750079782382,30.3637,2615.1,2615.0,0.76471]
[1750079783073,6.114,2615.1,2615.0,0.76471]
[1750079783278,29.599,2615.1,2615.0,2.05541]
[1750079783775,1.38755,2615.3,2615.2,0.76465]
[1750079784084,30.98655,2615.3,2615.2,0.76465]
[1750079784680,0.77028372,2615.6,2615.5,0.76457]
[1750079784878,24.25528372,2615.6,2615.5,0.76457]
[1750079785484,0.7646,2615.5,2615.4,0.76458]
[1750079787287,24.25530372,2615.6,2615.5,0.76457]
[1750079788486,24.25330372,2615.6,2615.5,0.76457]
[1750079788785,0.7646,2615.5,2615.4,0.76457]
[1750079788982,0.7646,2615.5,2615.4,2.04277]
[1750079790183,0.00574372,2615.6,2615.5,0.76457]
[1750079790481,23.48774372,2615.6,2615.5,0.76457]
[1750079790779,0.00574372,2615.6,2615.5,5.25057]
[1750079790979,24.25228372,2615.6,2615.5,5.25057]
[1750079791881,23.48774372,2615.6,2615.5,5.25057]
[1750079792385,0.00574372,2615.6,2615.5,5.25057]
[1750079792684,23.48674372,2615.6,2615.5,5.25057]
[1750079793391,0.00574372,2615.6,2615.5,5.25057]
[1750079794687,0.77028372,2615.6,2615.5,5.25057]
[1750079795683,0.77028372,2615.6,2615.5,3.2078]
[1750079796185,0.77028372,2615.6,2615.5,3.97237]
[1750079796690,0.00574372,2615.6,2615.5,3.97237]
[1750079796986,0.80736991,2615.6,2615.5,5.20467]
[1750079797388,0.80736991,2615.6,2615.5,5.27204406]
[1750079798592,0.80736991,2615.6,2615.5,5.20467]
[1750079798887,0.80736991,2615.6,2615.5,3.97237]
[1750079800397,24.28536991,2615.6,2615.5,3.97237]
[1750079802291,28.36887135,2615.6,2615.5,3.2078]
[1750079802500,28.36887135,2615.6,2615.5,3.97237]
[1750079802797,28.36887135,2615.6,2615.5,3.2078]
[1750079803094,28.36887135,2615.6,2615.5,3.97237]
[1750079803589,28.36887135,2615.6,2615.5,3.2078]
[1750079803791,28.36887135,2615.6,2615.3,7.8271]
[1750079803792,0.7646,2615.4,2615.3,7.8271]
[1750079804190,0.80168619,2615.4,2615.3,7.8271]
[1750079804391,0.80168619,2615.4,2615.3,1.4271]
[1750079805198,0.76462,2615.3,2615.2,3.2078]
[1750079805388,0.76471,2615.0,2614.9,0.76472]
[1750079805589,28.32521144,2615.0,2614.9,0.76472]
[1750079806301,23.51408619,2615.0,2614.9,0.76472]
[1750079807085,23.51408619,2615.0,2614.9,2.03892]
[1750079807287,24.27879619,2615.0,2614.9,2.03892]
[1750079808508,24.27879619,2615.0,2614.9,0.76472]
[1750079813703,24.27879619,2615.0,2614.9,0.83209406]
[1750079815303,34.47329763,2615.0,2614.9,0.06737406]
[1750079815605,0.7648,2614.7,2614.6,0.00574372]
[1750079815808,24.2428,2614.7,2614.6,0.00574372]
[1750079816407,24.93358619,2614.7,2614.6,0.77057372]
[1750079817806,24.93358619,2614.7,2614.6,0.00574372]
[1750079818008,26.27208619,2614.7,2614.6,0.00574372]
[1750079818810,0.76495,2614.3,2614.2,0.76492]
[1750079819011,28.32745144,2614.3,2614.2,0.76492]
[1750079819407,29.02023763,2614.3,2614.2,0.76492]
[1750079820613,24.17178619,2614.3,2614.2,0.76492]
[1750079821414,24.93670619,2614.3,2614.2,0.76492]
[1750079824018,0.76497,2614.2,2614.1,0.76495]
[1750079824420,28.98313144,2614.3,2614.2,0.72786381]
[1750079825017,28.98313144,2614.3,2614.2,0.79523787]
[1750079825819,24.89963,2614.3,2614.2,0.79523787]
[1750079826115,28.98313144,2614.3,2614.2,0.06737406]
[1750079826420,29.59753144,2614.3,2614.2,0.06737406]
[1750079826622,30.83873144,2614.3,2614.2,0.06737406]
[1750079827014,0.76498,2614.1,2614.0,0.00574372]
[1750079827218,0.76515,2613.5,2613.3,3.2078]
[1750079827415,4.84865144,2613.5,2613.4,0.76516]
[1750079827623,34.44265144,2613.5,2613.4,0.76516]
[1750079828317,29.594,2613.5,2613.4,0.76516]
[1750079828521,6.11874372,2613.7,2613.6,0.76512]
[1750079828726,29.59974372,2613.7,2613.6,0.76512]
[1750079829323,30.36483372,2613.7,2613.6,2.05482]
[1750079829523,30.36483372,2613.7,2613.6,0.76512]
[1750079829726,0.76512,2613.6,2613.5,0.76514]
[1750079829928,4.84862144,2613.6,2613.5,0.76514]
[1750079830528,0.76517,2613.5,2613.4,0.76515]
[1750079830730,1.43207,2613.5,2613.4,0.76515]
[1750079831922,0.76518,2613.4,2613.3,3.8711]
[1750079832127,28.33468144,2613.4,2613.3,0.6633]
[1750079833226,28.33468144,2613.4,2613.3,1.42851]
[1750079833728,0.76521,2613.3,2613.2,0.00574372]
[1750079834118,0.76521,2613.3,2612.7,0.76535]
[1750079834119,4.84888144,2612.8,2612.7,0.76535]
[1750079834326,34.45088144,2612.8,2612.7,0.76535]
[1750079835219,0.76539,2612.7,2612.6,4.64571]
[1750079835423,0.76539,2612.7,2612.6,3.2078]
[1750079835826,0.76539,2612.7,2612.6,3.97321]
[1750079836226,0.76539,2612.7,2612.6,3.2078]
[1750079836427,0.76541,2612.6,2612.5,0.00574372]
[1750079836625,28.33691144,2612.6,2612.5,0.77118372]
[1750079837023,28.33691144,2612.6,2612.5,0.00574372]
[1750079838030,23.488,2612.6,2612.5,0.77118372]
[1750079838329,4.84891144,2612.7,2612.6,0.76541]
[1750079838531,0.76541,2612.6,2612.5,0.77116372]
[1750079839528,0.76541,2612.6,2612.5,0.00574372]
[1750079840124,0.76541,2612.6,2612.5,0.83855778]
[1750079840928,24.25841,2612.6,2612.5,0.83855778]
[1750079844239,0.76539,2612.7,2612.6,0.76541]
[1750079844431,30.37439,2612.7,2612.6,0.76541]
[1750079844634,30.37439,2612.7,2612.6,1.99921]
[1750079844927,29.609,2612.7,2612.6,1.99921]
[1750079845129,3.2078,2612.8,2612.5,0.07311778]
[1750079845334,0.76541,2612.6,2612.5,0.83854778]
[1750079845634,0.76541,2612.6,2612.5,0.07311778]
[1750079846231,0.76541,2612.6,2612.5,0.00574372]
[1750079847241,0.76541,2612.6,2612.5,0.07311778]
[1750079848345,0.76556,2612.1,2612.0,0.6455]
[1750079848644,0.76562,2611.9,2611.8,3.97343]
[1750079848831,28.34512144,2611.9,2611.8,3.97343]
[1750079849034,28.34512144,2611.9,2611.8,3.2078]
[1750079850341,28.34512144,2611.9,2611.8,3.97345]
[1750079850648,1.4083,2612.0,2611.9,0.76562]
[1750079850950,31.0213,2612.0,2611.9,0.76562]
[1750079851946,0.7656,2612.0,2611.9,2.08462]
[1750079852148,4.08924516,2612.1,2612.0,0.76559]
[1750079852344,34.46980516,2612.1,2612.0,2.08389]
[1750079854146,34.46980516,2612.1,2612.0,1.3183]
[1750079854444,0.76562,2611.9,2611.8,3.97343]
[1750079854640,24.26562,2611.9,2611.8,3.97343]
[1750079854839,23.5,2611.9,2611.8,5.29173]
[1750079855837,4.08924516,2612.1,2611.9,0.76562]
[1750079856037,4.08924516,2612.1,2611.9,2.10582]
[1750079856038,29.616,2612.0,2611.9,2.10582]
[1750079856238,0.00574372,2612.1,2612.0,0.76559]
[1750079856445,29.62174372,2612.1,2612.0,2.17316406]
[1750079856651,0.00574372,2612.1,2612.0,2.17316406]
[1750079856852,0.00574372,2612.1,2612.0,7.17316406]
[1750079857243,1.4131,2612.7,2612.6,0.76541]
[1750079857555,30.3814,2612.7,2612.6,0.76541]
[1750079857843,34.46490144,2612.7,2612.6,0.76541]
[1750079858048,6.8804,2612.7,2612.6,0.76541]
[1750079858351,30.3814,2612.7,2612.6,0.76541]
[1750079860352,0.7654,2612.7,2612.6,0.76541]
[1750079860549,30.3794,2612.7,2612.6,0.76541]
[1750079861149,29.613,2612.7,2612.6,0.76541]
[1750079861352,30.37839,2612.7,2612.6,1.99131]
[1750079863349,6.88039,2612.7,2612.6,1.99131]
[1750079863550,30.37839,2612.7,2612.6,1.99131]
[1750079865053,0.76539,2612.7,2612.6,1.99131]
[1750079865250,24.26239,2612.7,2612.6,0.76541]
[1750079865452,0.7655,2612.4,2612.3,0.76549]
[1750079865753,34.46100144,2612.4,2612.3,0.76549]
[1750079866345,0.7655,2612.3,2612.2,5.20701]
[1750079867656,0.7655,2612.3,2612.2,3.2078]
[1750079867856,0.7655,2612.3,2612.0,0.76558]
[1750079867857,0.76559,2612.1,2612.0,0.76558]
[1750079868047,0.76562,2611.9,2611.8,1.43857372]
[1750079868357,28.34612144,2611.9,2611.8,0.67294372]
[1750079868846,28.34612144,2611.9,2611.8,1.43859372]
[1750079869857,28.34612144,2611.9,2611.8,0.67294372]
[1750079870149,28.34612144,2611.9,2611.8,0.00574372]
[1750079870348,24.26262,2611.9,2611.8,0.00574372]
[1750079871455,23.497,2611.9,2611.8,0.77139372]
[1750079871760,3.2078,2612.0,2611.9,0.76562]
[1750079871950,4.84907144,2612.2,2612.1,0.76556]
[1750079872152,34.46207144,2612.2,2612.1,0.76556]
[1750079875954,33.69650144,2612.2,2612.1,0.76556]
[1750079876154,34.46203144,2612.2,2612.1,0.76556]
[1750079878760,30.37856,2612.2,2612.1,0.76556]
[1750079879059,0.76553,2612.3,2612.2,0.76549]
[1750079879251,34.46203144,2612.3,2612.2,0.76549]
[1750079879761,30.37853,2612.3,2612.2,0.76549]
[1750079880356,6.114,2612.3,2612.2,0.76549]
[1750079880556,29.613,2612.3,2612.2,0.76549]
[1750079882563,30.3785,2612.3,2612.2,0.76549]
[1750079883060,29.613,2612.3,2612.2,0.76549]
[1750079883266,4.08350144,2612.4,2612.3,0.7655]
[1750079883267,4.84900144,2612.4,2612.3,0.7655]
[1750079883753,0.662,2612.5,2612.4,0.76547]
[1750079883957,6.776,2612.5,2612.4,0.76547]
[1750079884156,0.7654,2612.7,2612.6,0.76541]
[1750079884461,30.3774,2612.7,2612.6,0.76541]
[1750079885457,30.3774,2612.7,2612.3,3.43125981]
[1750079885458,29.612,2612.7,2612.3,3.43125981]
[1750079885758,0.76547,2612.5,2612.4,0.76543]
[1750079886060,24.26347,2612.5,2612.4,0.76543]
[1750079887156,0.76547,2612.4,2612.3,1.44367]
[1750079887357,5.46477144,2612.4,2612.3,1.44367]
[1750079888367,0.76556,2612.1,2612.0,2.29022981]
[1750079888555,0.76556,2612.1,2611.9,6.11690519]
[1750079888556,0.76559,2612.0,2611.9,0.76559]
[1750079889057,34.45808144,2612.1,2612.0,0.76559]
[1750079889252,10.08635,2612.2,2612.1,0.76556]
[1750079889462,33.58135,2612.2,2612.1,0.76556]
[1750079889959,1.3455,2612.7,2612.1,0.76556]
[1750079889960,5.50174891,2612.9,2612.2,0.06737406]
[1750079890158,23.50074372,2612.9,2612.8,0.76536]
[1750079890353,6.11874372,2612.9,2612.8,0.76536]
[1750079890560,29.61374372,2612.9,2612.8,0.76536]
[1750079890966,0.76542,2612.7,2612.5,4.73245981]
[1750079891261,0.76542,2612.7,2612.6,0.76539]
[1750079891465,23.494,2612.7,2612.6,0.76539]
[1750079891665,24.25939,2612.7,2612.6,0.76539]
[1750079892861,0.76541,2612.6,2612.5,3.2078]
[1750079893161,0.76547,2612.4,2612.3,0.76549]
[1750079893366,0.7655,2612.3,2612.2,1.3195]
[1750079893570,0.7655,2612.3,2612.2,1.44503]
[1750079894067,0.7655,2612.3,2612.2,1.51240406]
[1750079894971,6.87849,2612.4,2612.3,0.7655]
[1750079895174,1.41835,2612.5,2612.4,0.76547]
[1750079895469,31.02535,2612.5,2612.4,0.76547]
[1750079895967,0.76547,2612.4,2612.3,0.76549]
[1750079896169,4.84897144,2612.4,2612.3,0.76549]
[1750079896365,0.7655,2612.3,2612.2,0.83289406]
[1750079896572,24.2595,2612.3,2612.2,0.83290406]
[1750079896960,24.2595,2612.3,2612.2,0.06737406]
[1750079897160,24.2595,2612.3,2612.0,0.6191]
[1750079897161,0.76556,2612.1,2612.0,1.38468]
[1750079897363,28.34306144,2612.1,2612.0,1.38468]
[1750079898166,27.57750144,2612.1,2612.0,1.38468]
[1750079898361,23.494,2612.1,2612.0,1.38468]
[1750079898873,23.494,2612.1,2612.0,2.73568]
[1750079899167,6.113,2612.4,2612.3,0.7655]
[1750079899374,0.76547,2612.5,2612.4,0.76545]
[1750079899564,30.37247,2612.5,2612.4,0.76545]
[1750079900465,6.87847,2612.5,2612.4,0.76545]
[1750079900666,30.37247,2612.5,2612.4,0.76545]
[1750079901874,0.7655,2612.4,2612.3,0.76549]
[1750079902369,0.76553,2612.3,2612.1,1.52465981]
[1750079902673,4.84903144,2612.3,2612.2,0.76551]
[1750079902865,28.34303144,2612.3,2612.2,0.76551]
[1750079903065,0.76553,2612.2,2612.1,1.52465981]
[1750079903266,1.91398,2612.0,2611.7,3.05387519]
[1750079903469,0.76571,2611.7,2611.6,0.76568]
[1750079903769,24.28471,2611.7,2611.6,0.76568]
[1750079904972,24.28471,2611.7,2611.3,12.13539]
[1750079904973,0.76574,2611.6,2611.5,0.76572]
[1750079905168,23.519,2611.7,2611.6,0.76571]
[1750079905370,23.519,2611.7,2611.5,0.76572]
[1750079906269,23.519,2611.7,2611.3,7.0131]
[1750079906470,23.519,2611.7,2611.6,0.76571]
[1750079907067,23.519,2611.7,2611.3,8.92759]
[1750079907068,23.519,2611.7,2611.5,0.76571]
[1750079907478,23.519,2611.7,2611.3,7.0131]
[1750079907672,4.08350144,2611.6,2611.4,0.76575]
[1750079907973,23.508,2611.5,2611.4,0.76577]
[1750079908973,23.507,2611.5,2611.4,5.40080144]
[1750079909288,6.112,2611.8,2611.7,0.76568]
[1750079909567,29.613,2611.8,2611.7,0.76568]
[1750079909976,3.2078,2611.9,2611.8,0.76565]
[1750079910170,29.623,2611.9,2611.3,2.28820519]
[1750079910361,4.08350144,2611.5,2611.2,1.91454]
[1750079910563,4.08350144,2611.7,2611.6,0.7657]
[1750079910767,28.43419144,2611.7,2611.5,0.76572]
[1750079911374,27.66850144,2611.7,2611.3,0.76578]
[1750079911576,4.84925144,2611.5,2611.1,5.73953]
[1750079911779,23.58,2611.4,2611.3,0.7658]
[1750079912670,24.34577,2611.4,2611.3,0.7658]
[1750079913377,32.09292315,2611.4,2611.1,0.6171]
[1750079913579,0.76583,2611.2,2611.1,1.38293]
[1750079913774,0.76583,2611.2,2611.1,0.76583]
[1750079914986,0.76588,2611.1,2611.0,0.76586]
[1750079915275,0.76588,2611.0,2610.9,0.7659]
[1750079917571,0.76591,2610.9,2610.8,5.24992]
[1750079919982,31.60066,2611.1,2610.8,5.24992]
[1750079919983,1.3997,2611.0,2610.9,0.76591]
[1750079920580,31.0657,2611.0,2610.9,0.76591]
[1750079921881,31.0657,2611.0,2610.8,2.04212]
[1750079921882,0.76591,2610.9,2610.8,2.04212]
[1750079922085,30.2998,2611.0,2610.9,0.76591]
[1750079922385,30.2998,2611.0,2610.8,2.04212]
[1750079922588,0.76591,2610.9,2610.8,2.04212]
[1750079922882,31.06571,2611.0,2610.9,0.76591]
[1750079923678,1.91479,2610.9,2610.2,11.52309]
[1750079923881,0.76604,2610.6,2610.5,0.766]
[1750079924077,29.664,2610.6,2610.5,0.766]
[1750079924289,4.60751,2611.0,2610.5,1.91508]
[1750079924586,29.669,2610.9,2610.5,1.91508]
[1750079924787,29.669,2610.9,2610.8,0.76594]
[1750079924788,30.43492,2610.9,2610.8,0.76594]
[1750079927487,1.91486,2610.8,2610.3,2.53368]
[1750079927694,0.76606,2610.5,2610.4,0.76602]
[1750079927885,30.47506,2610.5,2610.4,0.76602]
[1750079928389,29.709,2610.5,2610.4,0.76602]
[1750079928593,30.47503,2610.5,2610.4,0.76602]
[1750079929392,29.709,2610.5,2610.4,0.76602]
[1750079929690,29.709,2610.5,2610.4,0.83339406]
[1750079930091,29.71,2610.5,2610.4,4.04123406]
[1750079930291,0.76595,2610.8,2610.7,0.76594]
[1750079930492,30.47695,2610.8,2610.7,0.76594]
[1750079931583,0.76595,2610.8,2610.7,0.76594]
[1750079931795,30.47795,2610.8,2610.7,0.76594]
[1750079932789,30.52395,2610.8,2610.7,0.76594]
[1750079932989,0.76602,2610.7,2610.6,0.76598]
[1750079933197,0.76602,2610.7,2610.4,4.04123406]
[1750079933198,39.03689315,2610.8,2610.7,0.76597]
[1750079933893,6.165,2610.8,2610.7,0.76597]
[1750079934093,29.757,2610.8,2610.7,0.76597]